fUSD/lending_fUSD_20260408
["ID","MTS","AMOUNT","RATE_DAILY","PERIOD"]
[420055756,1775637050135,-500.0,0.0001589,2]
[420055757,1775637050144,-500.0,0.0001589,2]
[420055758,1775637050153,-194.91667222,0.0001589,2]
[420055759,1775637050163,-2500.0,0.0001589,2]
[420055760,1775637050172,-4000.0,0.00015895,2]
[420055761,1775637050182,-830.65684136,0.000159,2]
[420055762,1775637050192,-1603.43673345,0.000159,2]
[420055763,1775637050202,-836.45900119,0.000159,2]
[420055764,1775637050212,-435.95737366,0.000159,2]
[420055765,1775637050222,-3798.10968144,0.000159,2]
[420055766,1775637050231,-2000.0,0.000159,2]
[420055767,1775637050241,-150.0,0.00015904,2]
[420055768,1775637050251,-150.0,0.00015904,2]
[420055769,1775637050260,-150.0,0.00015916,2]
[420055770,1775637050269,-150.0,0.00015917,2]
[420055771,1775637050280,-150.0,0.00015918,2]
[420055772,1775637050289,-150.0,0.00015924,2]
[420055773,1775637050298,-150.0,0.00015924,2]
[420055774,1775637050309,-150.0,0.00015926,2]
[420055775,1775637050318,-150.0,0.00015928,2]
[420055776,1775637050328,-13738.3573636,0.00015932,2]
[420055777,1775637050338,-150.0,0.00015936,2]
[420055778,1775637050347,-150.0,0.00015937,2]
[420055779,1775637050357,-150.0,0.00015945,2]
[420055780,1775637050367,-150.0,0.00015952,2]
[420055781,1775637050376,-915458.5091532,0.00015956,2]
[420055782,1775637050386,-150.0,0.00015958,2]
[420055783,1775637050396,-150.0,0.00015959,2]
[420055784,1775637050406,-150.0,0.00015963,2]
[420055785,1775637050416,-1000.0,0.00015968,2]
[420055786,1775637050426,-150.0,0.00015968,2]
[420055787,1775637050435,-150.0,0.00015972,2]
[420055788,1775637050444,-500.0,0.00015973,2]
[420055789,1775637050454,-500.0,0.00015973,2]
[420055790,1775637050462,-500.0,0.00015973,2]
[420055791,1775637050472,-308.60154884,0.00015973,2]
[420055792,1775637050482,-500.0,0.00015973,2]
[420055793,1775637050491,-500.0,0.00015973,2]
[420055794,1775637050500,-500.0,0.00015973,2]
[420055795,1775637050510,-501.22826804,0.00015973,2]
[420055796,1775637050520,-500.0,0.00015973,2]
[420055797,1775637050529,-500.0,0.00015973,2]
[420055798,1775637050539,-500.0,0.00015973,2]
[420055799,1775637050549,-500.0,0.00015973,2]
[420055800,1775637050558,-500.0,0.00015973,2]
[420055801,1775637050567,-500.0,0.00015973,2]
[420055802,1775637050576,-500.0,0.00015973,2]
[420055803,1775637050585,-500.0,0.00015973,2]
[420055804,1775637050595,-500.0,0.00015973,2]
[420055805,1775637050605,-500.0,0.00015973,2]
[420055806,1775637050614,-502.08343248,0.00015973,2]
[420055807,1775637050624,-538.78941312,0.00015973,2]
[420055808,1775637050634,-500.0,0.00015973,2]
[420055809,1775637050643,-500.0,0.00015973,2]
[420055810,1775637050652,-500.0,0.00015973,2]
[420055811,1775637050661,-502.38567456,0.00015973,2]
[420055812,1775637050671,-500.0,0.00015973,2]
[420055813,1775637050680,-361.43877969,0.00015973,2]
[420055814,1775637050689,-500.0,0.00015973,2]
[420055815,1775637050698,-500.0,0.00015973,2]
[420055816,1775637050707,-244.23047354,0.00015973,2]
[420055817,1775637050717,-500.18173431,0.00015973,2]
[420055818,1775637050726,-500.0,0.00015973,2]
[420055819,1775637050736,-164.42313659,0.00015973,2]
[420055820,1775637050745,-500.0,0.00015973,2]
[420055821,1775637050755,-163.86569709,0.00015973,2]
[420055822,1775637050764,-500.0,0.00015973,2]
[420055823,1775637050774,-150.0,0.00015976,2]
[420055824,1775637050783,-350.0,0.00015988,2]
[420055825,1775637050792,-151.0,0.00015997,2]
[420055826,1775637050802,-666.0,0.00015999,2]
[420055827,1775637050811,-666.0,0.00015999,2]
[420055828,1775637050820,-823.97,0.00015999,2]
[420055829,1775637050830,-823.97,0.00015999,2]
[420055830,1775637050840,-823.97,0.00015999,2]
[420055831,1775637050849,-823.97,0.00015999,2]
[420055832,1775637050858,-824.09706313,0.00015999,2]
[420055833,1775637050868,-568.74,0.00015999,2]
[420055834,1775637050878,-568.74,0.00015999,2]
[420055835,1775637050888,-568.74,0.00015999,2]
[420055836,1775637050897,-568.74,0.00015999,2]
[420055837,1775637050906,-568.82574047,0.00015999,2]
[420055838,1775637050917,-254.97243642,0.00016,2]
[420055839,1775637050927,-240.76039255,0.00016,2]
[420055840,1775637050938,-153.03603175,0.00016,2]
[420055841,1775637050947,-265.82430715,0.00016,2]
[420055842,1775637050957,-257.21753865,0.00016,2]
[420055843,1775637050967,-299.8368581,0.00016,2]
[420055844,1775637050977,-154.96470644,0.00016,2]
[420055845,1775637050986,-246.14760097,0.00016,2]
[420055846,1775637050996,-253.01547596,0.00016,2]
[420055847,1775637051006,-235.51154759,0.00016,2]
[420055848,1775637051015,-175.09773323,0.00016,2]
[420055849,1775637051025,-260.08916634,0.00016,2]
[420055850,1775637051035,-6026721.50234056,0.00016,2]
[420055851,1775637052157,-999.8506,0.00016,2]
[420055852,1775637052171,-1000.51193,0.00016,2]
[420055853,1775637052185,-436.75223375,0.00016,2]
[420055854,1775637052198,-1033.56296967,0.00016,2]
[420055855,1775637052218,-316.10391385,0.00016,2]
[420055856,1775637052237,-1337.35,0.00016,2]
[420055857,1775637052256,-327171.73404338,0.00016,2]
[420055858,1775637052272,-1199.12460602,0.00016,2]
[420055859,1775637052317,-13820.33477592,0.00016,2]
[420055860,1775637052335,-3242.36316023,0.00016,2]
[420055861,1775637052352,-993.71667762,0.00016,2]
[420055862,1775637052368,-431.69598331,0.00016,2]
[420055863,1775637053697,-500.0,0.00010591,2]
[420055864,1775637053709,-625.62574519,0.00010591,2]
[420055865,1775637053722,-206.4133678,0.00010591,2]
[420055866,1775637053735,-500.0,0.00010591,2]
[420055867,1775637053748,-500.0,0.00010591,2]
[420055868,1775637053763,-195.79442916,0.00010591,2]
[420055869,1775637053775,-158.15239998,0.00013699,2]
[420055870,1775637053787,-40922.01637182,0.00016,2]
[420055871,1775637053803,-1038.72369097,0.00016,2]
[420055872,1775637053932,-265.1286,0.00010582,2]
[420055873,1775637053946,-259.86178237,0.00010582,2]
[420055874,1775637053957,-6.09821763,0.00016,2]
[420055875,1775637053973,-1063.5135866,0.00016,2]
[420055876,1775637053988,-333.26194966,0.00016,2]
[420055877,1775637054171,-524.99038237,0.00010583,2]
[420055878,1775637054184,-524.99038237,0.0001599,2]
[420055879,1775637054195,-255607.13934203,0.00016,2]
[420055880,1775637054209,-624.02728932,0.00016,2]
[420055881,1775637054635,-18667.28531666,0.00012877,2]
[420055882,1775637054738,-1625.27450502,0.00012877,2]
[420055883,1775637055203,-150.0,0.000107,2]
[420055884,1775637055214,-171.0633,0.00012,2]
[420055885,1775637055226,-16687.92380266,0.00012877,2]
[420055886,1775637055237,-15912.26375601,0.00013474,2]
[420055887,1775637055255,-21068.21986833,0.00013474,2]
[420055888,1775637055267,-1062.57374867,0.00014514,2]
[420055889,1775637055277,-1036.60540425,0.00014514,2]
[420055890,1775637055288,-91674.85255564,0.00016,2]
[420055891,1775637055300,-15716.60340612,0.00016,2]
[420055892,1775637055311,-3309.50165935,0.00016,2]
[420055893,1775637055323,-43006.97076364,0.00016,2]
[420055902,1775637339743,-184.51,0.0001,2]
[420055903,1775637339770,-153.03505367,0.0001,2]
[420055904,1775637432012,255.61,7.415e-05,2]
[420055905,1775637432130,255.61,7.806e-05,2]
[420055906,1775637432320,255.61,8.196e-05,2]
[420055907,1775637432520,255.61,8.586e-05,2]
[420055908,1775637432717,255.61,8.976e-05,2]
[420055909,1775637432921,255.61,9.367e-05,2]
[420055910,1775637433119,255.61,9.757e-05,2]
[420055911,1775637452249,1254.39,9.75e-05,2]
[420055914,1775638174561,365.93,9.511e-05,2]
[420055915,1775638232247,-268.73504949,0.0001,2]
[420055917,1775638232257,-480.93524982,0.00010002,2]
[420055920,1775638232270,-457.79865895,0.00010002,2]
[420055921,1775638232280,-265.86993971,0.00010003,2]
[420055922,1775638232290,-250.0,0.00010006,2]
[420055923,1775638232303,-268.73504949,0.00010006,2]
[420055924,1775638232313,-250.0,0.00010037,2]
[420055925,1775638232323,-365.93,0.0001004,2]
[420055926,1775638232333,-500.0,0.00010071,2]
[420055927,1775638232344,-224.2714515,0.00010071,2]
[420055928,1775638232354,-287.93802164,0.00010071,2]
[420055929,1775638232365,-337.05610042,0.00010071,2]
[420055930,1775638232375,-192.40077829,0.00010072,2]
[420055944,1775638232747,-500.0,0.00010071,2]
[420055946,1775638232757,-282.0,0.00010072,2]
[420056009,1775638234628,-725.59922171,0.00010072,2]
[420056010,1775638234639,-1019.38779033,0.00010072,2]
[420056011,1775638234653,-851.28410069,0.00010072,2]
[420056012,1775638234664,-4459.87334313,0.00010072,2]
[420056013,1775638235240,-712.750005,0.00010072,2]
[420056014,1775638235252,-555.97102234,0.00010072,2]
[420056015,1775638235263,-487.38503545,0.00010072,2]
[420056016,1775638238341,-901.16,9.973e-05,2]
[420056017,1775638238522,-331.39424204,9.973e-05,2]
[420056018,1775638238535,-2938.73234381,9.973e-05,2]
[420056019,1775638238545,-8562.46142365,0.00010072,2]
[420056020,1775638238557,-1483350.88727941,0.00010072,2]
[420056021,1775638238568,-2500.0,0.00010073,2]
[420056022,1775638238578,-268.73504949,0.00010073,2]
[420056023,1775638238588,-153.43410661,0.00010073,2]
[420056024,1775638238598,-386.71698126,0.00010073,2]
[420056025,1775638238608,-166.66,0.00010079,2]
[420056026,1775638238618,-150.0,0.00010099,2]
[420056027,1775638238629,-150.0,0.000101,2]
[420056028,1775638238640,-830.6568414,0.000101,2]
[420056029,1775638238651,-3322.9215,0.000101,2]
[420056030,1775638238661,-9170.378,0.000101,2]
[420056031,1775638238671,-1603.43673346,0.000101,2]
[420056032,1775638238681,-290.63824912,0.000101,2]
[420056033,1775638238691,-3798.10968146,0.000101,2]
[420056034,1775638238701,-255.61,0.00010147,2]
[420056035,1775638238711,-1571.58,0.00010172,2]
[420056036,1775638238721,-5042.98,0.00010172,2]
[420056037,1775638238731,-500.0,0.00010173,2]
[420056038,1775638238741,-500.0,0.00010173,2]
[420056039,1775638238751,-500.0,0.00010173,2]
[420056040,1775638238761,-500.0,0.00010173,2]
[420056041,1775638238771,-500.0,0.00010173,2]
[420056042,1775638238780,-500.0,0.00010173,2]
[420056043,1775638238790,-281.88719221,0.00010173,2]
[420056044,1775638238802,-500.0,0.00010173,2]
[420056045,1775638238812,-169.66281329,0.00010173,2]
[420056046,1775638238824,-500.0,0.00010173,2]
[420056047,1775638238834,-500.0,0.00010173,2]
[420056048,1775638238844,-500.0,0.00010173,2]
[420056049,1775638238854,-500.0,0.00010173,2]
[420056050,1775638238864,-500.0,0.00010173,2]
[420056051,1775638238875,-500.0,0.00010173,2]
[420056052,1775638238886,-500.22085293,0.00010173,2]
[420056053,1775638238896,-170.15582469,0.00010173,2]
[420056054,1775638238906,-500.0,0.00010173,2]
[420056055,1775638238916,-200.08326476,0.00010173,2]
[420056056,1775638238927,-3221.635,0.00010173,2]
[420056057,1775638238937,-194.425,0.00010173,2]
[420056058,1775638238947,-48601.16,0.00010173,2]
[420056059,1775638238957,-150.99,0.00010173,2]
[420056060,1775638238967,-999.99,0.00010173,2]
[420056061,1775638238977,-5383.62,0.00010173,2]
[420056062,1775638238987,-2459.93,0.00010173,2]
[420056063,1775638238996,-4999.99,0.00010173,2]
[420056064,1775638239007,-499.99,0.00010173,2]
[420056065,1775638239017,-9999.99,0.00010173,2]
[420056066,1775638239027,-6652.22,0.00010173,2]
[420056067,1775638239037,-9999.99,0.00010173,2]
[420056068,1775638239047,-8464.87,0.00010173,2]
[420056069,1775638239056,-9999.99,0.00010173,2]
[420056070,1775638239066,-299.99,0.00010173,2]
[420056071,1775638239076,-3419.27,0.00010173,2]
[420056072,1775638239085,-150.99,0.00010173,2]
[420056073,1775638239095,-9999.99,0.00010173,2]
[420056074,1775638239106,-151.0,0.00010194,2]
[420056075,1775638239115,-151.0,0.00010194,2]
[420056076,1775638239125,-151.0,0.00010194,2]
[420056078,1775638239135,-151.0,0.00010194,2]
[420056080,1775638239146,-500.0,0.00010194,2]
[420056082,1775638239155,-151.0,0.00010194,2]
[420056084,1775638239164,-500.0,0.00010194,2]
[420056086,1775638239175,-151.0,0.00010194,2]
[420056088,1775638239186,-500.0,0.00010194,2]
[420056090,1775638239196,-151.0,0.00010194,2]
[420056092,1775638239207,-500.0,0.00010194,2]
[420056094,1775638239218,-151.0,0.00010194,2]
[420056096,1775638239228,-500.0,0.00010194,2]
[420056098,1775638239239,-500.0,0.00010194,2]
[420056100,1775638239249,-151.0,0.00010194,2]
[420056102,1775638239260,-500.0,0.00010194,2]
[420056104,1775638239269,-151.0,0.00010194,2]
[420056106,1775638239279,-500.0,0.00010194,2]
[420056108,1775638239289,-151.0,0.00010194,2]
[420056110,1775638239299,-500.0,0.00010194,2]
[420056112,1775638239310,-151.0,0.00010194,2]
[420056114,1775638239319,-500.0,0.00010194,2]
[420056116,1775638239329,-151.0,0.00010194,2]
[420056118,1775638239339,-200.0,0.00010194,2]
[420056120,1775638239349,-533.5472461,0.00010194,2]
[420056122,1775638239359,-151.0,0.00010194,2]
[420056124,1775638239369,-151.0,0.00010194,2]
[420056126,1775638239379,-500.0,0.00010194,2]
[420056128,1775638239390,-500.0,0.00010194,2]
[420056130,1775638239401,-500.0,0.00010194,2]
[420056132,1775638239412,-500.0,0.00010194,2]
[420056134,1775638239424,-500.0,0.00010194,2]
[420056136,1775638239434,-500.0,0.00010194,2]
[420056138,1775638239444,-500.0,0.00010194,2]
[420056140,1775638239455,-500.0,0.00010194,2]
[420056142,1775638239466,-500.0,0.00010194,2]
[420056144,1775638239476,-151.0,0.00010194,2]
[420056147,1775638239486,-500.0,0.00010194,2]
[420056149,1775638239508,-151.0,0.00010194,2]
[420056151,1775638239519,-500.0,0.00010194,2]
[420056153,1775638239530,-151.0,0.00010194,2]
[420056155,1775638239540,-500.0,0.00010194,2]
[420056158,1775638239551,-151.0,0.00010194,2]
[420056160,1775638239561,-500.0,0.00010194,2]
[420056162,1775638239572,-151.0,0.00010194,2]
[420056163,1775638239582,-500.0,0.00010194,2]
[420056165,1775638239592,-151.0,0.00010194,2]
[420056168,1775638239602,-500.0,0.00010194,2]
[420056170,1775638239614,-151.0,0.00010194,2]
[420056172,1775638239625,-151.0,0.00010194,2]
[420056174,1775638239635,-151.0,0.00010194,2]
[420056176,1775638239646,-151.0,0.00010194,2]
[420056178,1775638239656,-151.0,0.00010194,2]
[420056180,1775638239666,-1337.30371515,0.00010194,2]
[420056181,1775638239677,-151.0,0.00010194,2]
[420056182,1775638239688,-152.45672918,0.00010194,2]
[420056183,1775638239699,-151.0,0.00010194,2]
[420056184,1775638239709,-151.0,0.00010194,2]
[420056185,1775638239720,-151.0,0.00010194,2]
[420056186,1775638239730,-151.0,0.00010194,2]
[420056187,1775638239741,-151.0,0.00010194,2]
[420056188,1775638239751,-151.0,0.00010194,2]
[420056189,1775638239760,-151.0,0.00010194,2]
[420056190,1775638239770,-151.0,0.00010194,2]
[420056191,1775638239780,-269.16,0.00010194,2]
[420056192,1775638239790,-500.0,0.00010199,2]
[420056193,1775638239801,-155.355,0.00010199,2]
[420056194,1775638239811,-2500000.0,0.000102,2]
[420056195,1775638239821,-836.4590012,0.000102,2]
[420056196,1775638239832,-10000.0,0.000103,2]
[420056197,1775638239842,-151.0,0.0001038,2]
[420056198,1775638239852,-166.66,0.00010412,2]
[420056199,1775638239862,-207.0,0.00010447,2]
[420056200,1775638239872,-2683.73653912,0.0001045,2]
[420056201,1775638239882,-269.16,0.00010468,2]
[420056202,1775638239892,-682.0,0.00010468,2]
[420056203,1775638239902,-1889.0,0.00010489,2]
[420056204,1775638239912,-33041.7805,0.00010493,2]
[420056205,1775638239922,-1000.0,0.00010493,2]
[420056206,1775638239932,-411.0,0.00010503,2]
[420056207,1775638239942,-1808.0,0.00010509,2]
[420056208,1775638239952,-657.0,0.00010524,2]
[420056209,1775638239962,-255.61,0.00010538,2]
[420056210,1775638239972,-447.28942319,0.00010544,2]
[420056211,1775638239982,-797.0,0.00010545,2]
[420056212,1775638239992,-1351.0,0.00010566,2]
[420056213,1775638240001,-365.93,0.00010568,2]
[420056214,1775638240011,-500.0,0.00010593,2]
[420056215,1775638240020,-500.0,0.00010593,2]
[420056216,1775638240030,-500.0,0.00010593,2]
[420056217,1775638240040,-500.0,0.00010593,2]
[420056218,1775638240051,-500.0,0.00010593,2]
[420056219,1775638240061,-500.0,0.00010593,2]
[420056220,1775638240071,-500.0,0.00010593,2]
[420056221,1775638240081,-500.0,0.00010593,2]
[420056222,1775638240091,-500.0,0.00010593,2]
[420056223,1775638240100,-500.0,0.00010593,2]
[420056224,1775638240110,-500.0,0.00010593,2]
[420056225,1775638240120,-500.0,0.00010593,2]
[420056226,1775638240130,-500.0,0.00010593,2]
[420056227,1775638240140,-500.0,0.00010593,2]
[420056228,1775638240150,-500.0,0.00010593,2]
[420056229,1775638240160,-500.0,0.00010593,2]
[420056230,1775638240170,-500.0,0.00010593,2]
[420056231,1775638240179,-500.0,0.00010593,2]
[420056232,1775638240189,-500.0,0.00010593,2]
[420056233,1775638240198,-500.0,0.00010593,2]
[420056234,1775638240209,-500.0,0.00010593,2]
[420056235,1775638240218,-500.0,0.00010593,2]
[420056236,1775638240228,-500.0,0.00010593,2]
[420056237,1775638240238,-500.0,0.00010593,2]
[420056238,1775638240247,-447.28942319,0.00010648,2]
[420056239,1775638240257,-500.0,0.00010721,2]
[420056240,1775638240267,-269.18,0.00010742,2]
[420056241,1775638240276,-166.66,0.00010744,2]
[420056242,1775638240286,-447.28942319,0.00010753,2]
[420056243,1775638240296,-365.0,0.00010879,2]
[420056244,1775638240305,-316.0,0.000109,2]
[420056245,1775638240320,-1466.0,0.00010922,2]
[420056246,1775638240329,-255.61,0.00010928,2]
[420056247,1775638240339,-501.50073946,0.00010959,2]
[420056248,1775638240350,-150.0,0.00010959,2]
[420056249,1775638240361,-9891.79784251,0.00011,2]
[420056250,1775638240371,-250.0,0.00011,2]
[420056251,1775638240382,-193.0,0.00011,2]
[420056252,1775638240392,-300.0,0.00011,2]
[420056253,1775638240403,-300.0,0.00011,2]
[420056254,1775638240413,-300.0,0.00011,2]
[420056255,1775638240423,-265.76204215,0.00011,2]
[420056256,1775638240434,-600.0,0.00011,2]
[420056257,1775638240445,-5000.0,0.00011,2]
[420056258,1775638240455,-600.0,0.00011,2]
[420056259,1775638240465,-600.0,0.00011,2]
[420056260,1775638240476,-600.0,0.00011,2]
[420056261,1775638240487,-600.0,0.00011,2]
[420056262,1775638240497,-5000.0,0.00011,2]
[420056263,1775638240508,-195.0,0.00011,2]
[420056264,1775638240518,-195.0,0.00011,2]
[420056265,1775638240528,-195.0,0.00011,2]
[420056266,1775638240538,-195.0,0.00011,2]
[420056267,1775638240550,-195.0,0.00011,2]
[420056268,1775638240560,-166.66,0.00011077,2]
[420056269,1775638240570,-1680.0,0.00011079,2]
[420056270,1775638240579,-365.93,0.00011097,2]
[420056271,1775638240589,-31451.11543116,0.00011099,2]
[420056272,1775638240599,-31451.11543114,0.00011099,2]
[420056273,1775638240609,-255.0,0.00011109,2]
[420056274,1775638240619,-371.0,0.00011186,2]
[420056275,1775638240629,-155.0,0.00011219,2]
[420056276,1775638240640,-255.61,0.00011318,2]
[420056277,1775638240650,-31451.11543114,0.00011382,2]
[420056278,1775638240660,-830.65684136,0.000114,2]
[420056279,1775638240670,-166.66,0.0001141,2]
[420056280,1775638240680,-171.1442,0.000115,2]
[420056281,1775638240691,-6606.39,0.00011507,2]
[420056282,1775638240701,-365.93,0.00011625,2]
[420056283,1775638240712,-255.61,0.00011708,2]
[420056284,1775638240722,-166.66,0.00011743,2]
[420056285,1775638240732,-371.7705634,0.00011892,2]
[420056286,1775638240742,-31451.11543114,0.00012023,2]
[420056287,1775638240753,-255.61,0.00012099,2]
[420056288,1775638240763,-365.93,0.00012153,2]
[420056289,1775638240773,-2351.0,0.00012187,2]
[420056290,1775638240783,-433.0,0.0001222,2]
[420056291,1775638240793,-155.0,0.00012239,2]
[420056292,1775638240803,-255.61,0.00012489,2]
[420056293,1775638240813,-950.94102058,0.00012528,2]
[420056294,1775638240822,-31451.11543114,0.00012664,2]
[420056296,1775638240833,-365.93,0.00012682,2]
[420056299,1775638240843,-830.65684136,0.000127,2]
[420056300,1775638240852,-255.61,0.00012879,2]
[420056301,1775638240862,-195.269,0.000129,2]
[420056302,1775638240872,-250.0,0.00013,2]
[420056303,1775638240884,-290.6382491,0.00013,2]
[420056304,1775638240894,-507.0,0.000131,2]
[420056305,1775638240904,-365.93,0.0001321,2]
[420056306,1775638240913,-255.61,0.00013269,2]
[420056307,1775638240924,-31451.11543114,0.00013304,2]
[420056308,1775638240934,-250.0,0.00013367,2]
[420056309,1775638240944,-3292.0,0.00013406,2]
[420056310,1775638240954,-160.0,0.00013424,2]
[420056311,1775638240964,-420.69818,0.00013424,2]
[420056312,1775638240975,-261.331891,0.00013424,2]
[420056313,1775638240986,-362.663782,0.00013424,2]
[420056314,1775638240997,-434.811431,0.00013425,2]
[420056315,1775638241009,-736.0,0.00013442,2]
[420056316,1775638241019,-1603.43673345,0.000135,2]
[420056317,1775638241032,-836.45900119,0.0001355,2]
[420056318,1775638241042,-255.61,0.0001366,2]
[420056319,1775638241053,-500.0,0.00013698,2]
[420056320,1775638241063,-483.48,0.00013698,2]
[420056321,1775638241074,-500.0,0.00013698,2]
[420056322,1775638241083,-500.0,0.00013698,2]
[420056323,1775638241093,-500.0,0.00013698,2]
[420056324,1775638241103,-500.0,0.00013698,2]
[420056325,1775638241112,-500.0,0.00013698,2]
[420056326,1775638241122,-500.0,0.00013698,2]
[420056327,1775638241132,-500.0,0.00013698,2]
[420056328,1775638241142,-500.0,0.00013698,2]
[420056329,1775638241155,-500.0,0.00013698,2]
[420056330,1775638241165,-500.0,0.00013698,2]
[420056331,1775638241175,-500.0,0.00013698,2]
[420056332,1775638241184,-500.0,0.00013698,2]
[420056333,1775638241193,-500.0,0.00013698,2]
[420056334,1775638241203,-500.0,0.00013698,2]
[420056335,1775638241213,-630.71,0.00013698,2]
[420056336,1775638241223,-500.0,0.00013698,2]
[420056337,1775638241233,-500.0,0.00013698,2]
[420056338,1775638241243,-500.0,0.00013698,2]
[420056339,1775638241253,-500.0,0.00013698,2]
[420056340,1775638241264,-500.0,0.00013698,2]
[420056341,1775638241275,-500.0,0.00013698,2]
[420056342,1775638241285,-500.0,0.00013698,2]
[420056343,1775638241295,-500.0,0.00013698,2]
[420056344,1775638241305,-500.0,0.00013698,2]
[420056345,1775638241315,-500.0,0.00013698,2]
[420056346,1775638241325,-499.6872898,0.00013698,2]
[420056347,1775638241335,-500.0,0.00013698,2]
[420056348,1775638241346,-500.0,0.00013698,2]
[420056349,1775638241355,-504.74596653,0.00013698,2]
[420056350,1775638241365,-500.0,0.00013698,2]
[420056351,1775638241375,-500.0,0.00013698,2]
[420056352,1775638241385,-500.0,0.00013698,2]
[420056353,1775638241395,-500.0,0.00013698,2]
[420056354,1775638241404,-500.0,0.00013698,2]
[420056355,1775638241414,-500.0,0.00013698,2]
[420056356,1775638241423,-500.0,0.00013698,2]
[420056357,1775638241433,-615.24875447,0.00013698,2]
[420056358,1775638241443,-500.0,0.00013698,2]
[420056359,1775638241453,-500.0,0.00013698,2]
[420056360,1775638241462,-500.45174561,0.00013698,2]
[420056361,1775638241471,-500.0,0.00013698,2]
[420056362,1775638241482,-500.0,0.00013698,2]
[420056363,1775638241491,-500.0,0.00013698,2]
[420056364,1775638241502,-500.0,0.00013698,2]
[420056365,1775638241512,-406.01852309,0.00013698,2]
[420056366,1775638241523,-500.0,0.00013698,2]
[420056367,1775638241533,-500.0,0.00013698,2]
[420056368,1775638241546,-500.0,0.00013698,2]
[420056369,1775638241556,-500.0,0.00013698,2]
[420056370,1775638241566,-500.0,0.00013698,2]
[420056371,1775638241575,-500.0,0.00013698,2]
[420056372,1775638241585,-500.0,0.00013698,2]
[420056373,1775638241595,-500.0,0.00013698,2]
[420056374,1775638241604,-500.0,0.00013698,2]
[420056375,1775638241614,-500.0,0.00013698,2]
[420056376,1775638241626,-500.0,0.00013698,2]
[420056377,1775638241636,-500.0,0.00013698,2]
[420056378,1775638241645,-500.0,0.00013698,2]
[420056379,1775638241655,-392.00957995,0.00013698,2]
[420056386,1775638242129,-500.0,0.00013698,2]
[420056387,1775638242187,-500.0,0.00013698,2]
[420056388,1775638242196,-500.0,0.00013698,2]
[420056389,1775638242206,-500.0,0.00013698,2]
[420056390,1775638242215,-500.0,0.00013698,2]
[420056391,1775638242226,-500.0,0.00013698,2]
[420056392,1775638242235,-500.0,0.00013698,2]
[420056393,1775638242246,-420.19790691,0.00013698,2]
[420056394,1775638242255,-500.0,0.00013698,2]
[420056395,1775638242264,-500.0,0.00013698,2]
[420056396,1775638242274,-500.0,0.00013698,2]
[420056397,1775638242284,-500.0,0.00013698,2]
[420056398,1775638242295,-500.0,0.00013698,2]
[420056399,1775638242304,-500.0,0.00013698,2]
[420056400,1775638242314,-500.0,0.00013698,2]
[420056401,1775638242323,-500.0,0.00013698,2]
[420056402,1775638242333,-500.0,0.00013698,2]
[420056403,1775638242343,-500.0,0.00013698,2]
[420056404,1775638242353,-500.0,0.00013698,2]
[420056405,1775638242363,-500.0,0.00013698,2]
[420056406,1775638242373,-644.24464926,0.00013698,2]